Cogmind - Beta 10.2 @@@ ROGUE MODE // 2021.08.04 @ 23:02:03 Player: Azoxey Result: Destroyed by Y-45 Defender with Heavy Assault Rifle Performance ------------- Evolutions (1) 500 Regions Visited (3) 600 Robots Destroyed (22) 110 Value Destroyed (571) 571 Prototype IDs (0) 0 Alien Tech Used (0) 0 Bonus (0) 0 TOTAL SCORE: 1781 Bonus ------- None Cogmind --------- Core Integrity 0/400 Matter 273/300 Energy 100/100 System Corruption 0% Temperature Cool (9) Movement Rolling (90) Ox1 Location -9/Materials Parts ------- > --- POWER (1) -------- (None) > --- PROPULSION (3) --- Wheel Flight Unit > --- UTILITY (3) ------ Medium Storage Unit Visual Processing Unit > --- WEAPON (2) ------- Datajack Mining Claw > --- INVENTORY (8) ---- Light Ion Engine High-capacity Matter Pod (54) Core Shielding Datajack Peak State ------------ > --- POWER ------------ Ion Engine > --- PROPULSION ------- Aluminum Leg Aluminum Leg Aluminum Leg > --- UTILITY ---------- Heat Sink Medium Storage Unit Visual Processing Unit > --- WEAPON ----------- Particle Gun Assault Rifle > --- INVENTORY -------- Light Ion Engine Wheel High-capacity Matter Pod Core Shielding Grenade Launcher Datajack Datajack Mining Claw [Rating: 11] Favorites ----------- Power Ion Engine Engine Ion Engine Propulsion Aluminum Leg Leg Aluminum Leg Wheel Wheel Hover Unit Hover Unit Flight Unit Flight Unit Utility Medium Storage Unit Device Sensor Array Storage Medium Storage Unit Processor Visual Processing Unit Protection Core Shielding Weapon Assault Rifle Energy Gun EM Pulse Gun Ballistic Gun Assault Rifle Launcher Grenade Launcher Special Weapon Welding Torch Slashing Weapon Mining Claw Special Melee Weapon Datajack Build | -11 -10 -10 -9 ------- Run | Scr Mat Min Mat Slots Evolved 2 | . . . 2 Power . | . . . . Propulsion 1 | . . . 1 Utility 1 | . . . 1 Weapon . | . . . . Parts Attached 41 | 7 16 . 18 Power 5 | 2 1 . 2 Engine 5 | 2 1 . 2 Core . | . . . . Reactor . | . . . . Propulsion 13 | 2 7 . 4 Treads . | . . . . Leg 8 | 2 5 . 1 Wheel 1 | . . . 1 Hover 2 | . 2 . . Flight 2 | . . . 2 Utility 6 | 1 4 . 1 Device 2 | . 1 . 1 Storage 2 | 1 1 . . Processor 1 | . 1 . . Hackware . | . . . . Protection 1 | . 1 . . Artifact . | . . . . Weapon 17 | 2 4 . 11 Energy Gun 7 | 2 3 . 2 Energy Cannon . | . . . . Ballistic Gun 3 | . 1 . 2 Ballistic Cannon . | . . . . Launcher 1 | . . . 1 Special Weapon 2 | . . . 2 Impact Weapon . | . . . . Slashing Weapon 2 | . . . 2 Piercing Weapon . | . . . . Special Melee Weapon 2 | . . . 2 Unidentified Prototypes . | . . . . Parts Lost 20 | . 6 . 14 Power 3 | . 1 . 2 Propulsion 5 | . 1 . 4 Utility 2 | . 1 . 1 Weapon 10 | . 3 . 7 Highest Loss Streak 13 | . 3 . 13 Average Slot Usage (%) 87 | . 89 100 73 Engine 12 | . 13 14 8 Leg 25 | . 26 28 20 Device 5 | . 6 . 2 Storage 13 | . 14 14 11 Processor 5 | . 2 14 11 Energy Gun 15 | . 18 14 6 Ballistic Gun 6 | . 5 14 6 Naked Turns . | . . . . Heaviest Build 19 | 12 19 17 19 Greatest Support 30 | 20 20 20 30 Greatest Overweight (x) 2 | . 2 . 2 Average Overweight (x) . | . . . . Largest Inventory Capacity 8 | 6 8 8 8 Average Capacity 7 | 5 7 8 8 Most Carried 8 | 4 8 8 8 Average Carried 6 | 2 6 8 7 Final Capacity 8 | 6 8 8 8 Final Carried 8 | 4 8 8 4 Class Distribution -------------------- 52% | Mutant 47% | Scavenger-Mutant Dominant Class ---------------- Mutant | -10/Materials Scavenger-Mutant | -10/Mines Scavenger-Mutant | -9/Materials Resources | -11 -10 -10 -9 ----------- Run | Scr Mat Min Mat Matter Collected 781 | 270 264 . 247 Remotely . | . . . . Salvage Created 741 | 98 474 . 169 Parts 40 | 2 27 . 11 Haulers Intercepted 1 | . 1 . . Recyclers Shooed 1 | . 1 . . Parts Field Recycled . | . . . . Retrieved Matter . | . . . . Parts Self-Destructed . | . . . . Prevented . | . . . . Kills | -11 -10 -10 -9 ------- Run | Scr Mat Min Mat Combat Hostiles Destroyed 17 | . 12 . 5 Guns 15 | . 11 . 4 AOE 2 | . 1 . 1 Classes Destroyed 7 | 1 4 . 2 Hauler 1 | . 1 . . Recycler 1 | 1 . . . Mechanic 1 | . . . 1 Watcher 2 | . 2 . . Swarmer 5 | . 3 . 2 Grunt 11 | . 9 . 2 Sentry 1 | . . . 1 Best Kill Streak 4 | 1 4 . 2 Combat Bots Only 4 | . 4 . 2 Max Kills in Single Turn 1 | 1 1 . 1 Gunslinging . | . . . . Exploded 1 | . 1 . 1 Melee . | . . . . Uniques/NPCs Destroyed . | . . . . Combat | -11 -10 -10 -9 -------- Run | Scr Mat Min Mat Damage Taken 1869 | 34 596 . 1239 Core 551 | 17 128 . 406 Absorbed by Shields . | . . . . Core Remaining (%) 67 | 93 . 42 . Volleys Fired 90 | 2 57 . 31 Largest 2 | 2 2 . 2 Hottest 85 | 80 85 . 65 Shots Fired 129 | 4 90 . 35 Gun 125 | 4 90 . 31 Cannon . | . . . . Launcher 4 | . . . 4 Special . | . . . . Kinetic 62 | . 36 . 26 Thermal 34 | 2 31 . 1 Explosive 4 | . . . 4 Electromagnetic 29 | 2 23 . 4 Robot Hit Streak 8 | 4 8 . 7 Robot Miss Streak 4 | . 4 . 4 Penetration Max . | . . . . Secondary Targets 2 | . 2 . . Max Gunslinging Chain 1 | . 1 . . Shots Hit Robots 89 | 4 55 . 30 Core Hits 38 | 2 25 . 11 Critical Hits . | . . . . Critical Kills . | . . . . Critical Parts Destroyed . | . . . . Melee Attacks 10 | . . . 10 Impact . | . . . . Slashing 7 | . . . 7 Piercing . | . . . . Sneak Attacks 3 | . . . 3 Combat Hostiles . | . . . . Follow-up Attacks . | . . . . Damage Inflicted 1376 | 92 838 . 446 Guns 967 | 49 646 . 272 Cannons . | . . . . Explosions 316 | 43 189 . 84 Melee 90 | . . . 90 Ramming 3 | . 3 . . Kinetic 463 | . 237 . 226 Thermal 487 | 65 422 . . Explosive 84 | . . . 84 Electromagnetic 249 | 27 176 . 46 Impact . | . . . . Slashing 90 | . . . 90 Piercing . | . . . . Highest Corruption . | . . . . Average Corruption . | . . . . Corruption Purged . | . . . . Overload Shots . | . . . . Overflow Damage 18 | 18 . . . Projectiles . | . . . . Explosions 18 | 18 . . . Melee . | . . . . Knockbacks . | . . . . Impact . | . . . . Kinetic . | . . . . Secondary . | . . . . Self-Inflicted Damage 75 | 34 41 . . Shots 2 | 1 1 . . Rammed 1 | . 1 . . Targets Rammed 1 | . 1 . . Kicked . | . . . . Crushed . | . . . . Highest Temperature 353 | 48 353 . 13 Average Temperature 90 | 30 100 . 5 Received Heat Transfer 666 | . 294 . 372 Effects 3 | . 3 . . Shutdowns 1 | . 1 . . Energy Bleed 1 | . 1 . . Matter Decay 1 | . 1 . . Siege Activations . | . . . . Robots Corrupted . | . . . . Combat Hostiles . | . . . . Parts Fried . | . . . . Impact Corruptions . | . . . . Robots Melted . | . . . . Combat Hostiles . | . . . . Parts Melted . | . . . . Heat Transferred 843 | 100 743 . . Parts Sabotaged . | . . . . Parts Stolen . | . . . . Parts Stripped . | . . . . Power Chain Reactions 4 | 1 3 . . Missiles Intercepted . | . . . . Alert | -11 -10 -10 -9 ------- Run | Scr Mat Min Mat Peak Influence 237 | 5 237 78 149 Initial 78 | . 3 78 29 Average 79 | 2 83 78 81 Maximum Alert Level 1 | . 1 . . Low Security (%) 89 | 100 84 100 100 Level 1 10 | . 15 . . Level 2 . | . . . . Level 3 . | . . . . Level 4 . | . . . . Level 5 . | . . . . High Security . | . . . . Max Security . | . . . . Squads Dispatched 4 | . 2 . 2 Investigation 2 | . 1 . 1 Extermination . | . . . . Reinforcement 2 | . 1 . 1 Assault . | . . . . Garrison . | . . . . Intercept . | . . . . Construction Impeded . | . . . . Haulers Reinforced . | . . . . Stealth | -11 -10 -10 -9 --------- Run | Scr Mat Min Mat Distress Signals 1 | . 1 . . Communications Jammed . | . . . . Distress Signals . | . . . . Times Spotted 33 | . 22 . 11 Peak Tracking Total 5 | . 4 . 5 Tactical Retreats 3 | . 2 . 1 Traps | -11 -10 -10 -9 ------- Run | Scr Mat Min Mat Traps Triggered 2 | . 1 . 1 Indirectly . | . . . . Trap Hack Attempts . | . . . . Triggered . | . . . . Disarmed . | . . . . Reprogrammed . | . . . . Reused . | . . . . Traps Extracted . | . . . . Installed . | . . . . Triggered . | . . . . Machines | -11 -10 -10 -9 ---------- Run | Scr Mat Min Mat Machines Disabled 1 | . 1 . . Max in Single Turn 1 | . 1 . . Machines Sabotaged . | . . . . Garrisons Compromised . | . . . . Overloaded Fab Kills . | . . . . Fab Network Shutdowns . | . . . . Hacking | -11 -10 -10 -9 --------- Run | Scr Mat Min Mat Machines Accessed 7 | . 6 . 1 Terminals 7 | . 6 . 1 Fabricators . | . . . . Repair Stations . | . . . . Recycling Units . | . . . . Scanalyzers . | . . . . Garrison Access . | . . . . Total Hacks 19 | . 17 . 2 Successful 14 | . 13 . 1 Failed 5 | . 4 . 1 Catastrophic 1 | . 1 . . Database Lockouts . | . . . . Manual 15 | . 13 . 2 Terminals 19 | . 17 . 2 Fabricators . | . . . . Repair Stations . | . . . . Recycling Units . | . . . . Scanalyzers . | . . . . Garrison Access . | . . . . Terminal Hacks 6 | . 6 . . Terminal Index 1 | . 1 . . Alert Level 1 | . 1 . . Locate Traps 1 | . 1 . . Patrol Status 1 | . 1 . . Reinforcement Status 1 | . 1 . . Zone Layout 1 | . 1 . . Fabricator Hacks . | . . . . Repair Station Hacks . | . . . . Recycling Unit Hacks . | . . . . Scanalyzer . | . . . . Garrison Access Hacks . | . . . . Unauthorized Hacks 8 | . 7 . 1 Terminals 8 | . 7 . 1 Track 1 | . 1 . . Botnet 6 | . 5 . 1 Operators 1 | . 1 . . Fabricators . | . . . . Repair Stations . | . . . . Recycling Units . | . . . . Scanalyzers . | . . . . Garrison Access . | . . . . Data Cores Recovered . | . . . . Used . | . . . . Hacking Detections 7 | . 6 . 1 Full Trace Events . | . . . . Feedback Events . | . . . . Feedback Blocked . | . . . . Robot Schematics Acquired . | . . . . Robots Built . | . . . . Matter . | . . . . Time . | . . . . Total Robot Build Rating . | . . . . Part Schematics Acquired . | . . . . Parts Built . | . . . . Matter . | . . . . Time . | . . . . Total Part Build Rating . | . . . . Parts Repaired . | . . . . Time . | . . . . Parts Recycled . | . . . . Recycled Matter . | . . . . Retrieved Matter . | . . . . Retrieved Components . | . . . . Parts Scanalyzed . | . . . . Part Schematics Acquired . | . . . . Parts Damaged . | . . . . Bothacking | -11 -10 -10 -9 ------------ Run | Scr Mat Min Mat Used RIF Installer . | . . . . Robots Hacked 2 | . . . 2 Non-combat 1 | . . . 1 Combat 1 | . . . 1 Robot Hacks Applied 3 | . . . 3 parse_system 1 | . . . 1 no_distress 1 | . . . 1 find_station 1 | . . . 1 Relay Couplers Released . | . . . . Robots Rewired . | . . . . Allies Hacked . | . . . . Hacks Repelled . | . . . . Allies | -11 -10 -10 -9 -------- Run | Scr Mat Min Mat Total Allies . | . . . . Largest Group . | . . . . Highest-Rated Group . | . . . . Highest-Rated Ally . | . . . . Total Orders . | . . . . Ally Attacks . | . . . . Total Damage . | . . . . Kills . | . . . . Allies Corrupted . | . . . . Allies Melted . | . . . . Intel | -11 -10 -10 -9 ------- Run | Scr Mat Min Mat Robot Analysis Total . | . . . . Derelict Logs Recovered . | . . . . Drone Launches . | . . . . Drone Recoveries . | . . . . Exploration | -11 -10 -10 -9 ------------- Run | Scr Mat Min Mat Turns Passed 1517 | 60 980 170 307 Spaces Moved 890 | 38 575 141 136 Core 10 | 6 . . 4 Treads . | . . . . Legs 848 | 32 556 141 119 Wheels 6 | . . . 6 Hover 19 | . 19 . . Flight 7 | . . . 7 Fastest Speed 50 | 50 116 120 90 Average Speed 119 | 108 120 120 120 Slowest Speed 200 | 120 180 120 200 Overloaded Moves . | . . . . Propulsion Burnouts . | . . . . Robots Hopped . | . . . . Cave-ins Triggered . | . . . . Exploration Rate (%) 27 | 3 61 33 12 Regions Visited 3 Branch Regions 1 Pre-discovered Areas . | . . . . Known Exits Taken . | . . . . Unknown Exits Taken 3 | 1 1 1 . Scrap Searched . | . . . . Spaces Dug . | . . . . Terrain Destroyed 34 | . 12 . 22 Melee . | . . . . Projectile . | . . . . AOE 34 | . 12 . 22 Terrain Rammed . | . . . . Walls Destroyed . | . . . . Machines Disabled . | . . . . Actions | -11 -10 -10 -9 --------- Run | Scr Mat Min Mat Total 1187 | 49 772 142 224 Wait 128 | . 104 . 24 Move 887 | 37 574 140 136 Hop . | . . . . Pick Up 12 | 3 8 . 1 Fast Attach 25 | 6 10 . 9 Attach 8 | . 3 . 5 Detach 3 | . 2 . 1 Swap 8 | 1 3 . 4 Drop 13 | . 10 . 3 Fire 90 | 2 57 . 31 Melee 10 | . . . 10 Ram . | . . . . Kick 1 | . 1 . . Crush . | . . . . Escape Stasis . | . . . . Rewire 2 | . . 2 . Trap . | . . . . Miscellaneous . | . . . . Route ------- -11/Scrapyard -10/Materials (discovered 2 exits: [*Min x2]) -10/Mines -9/Materials History --------- Turn | Location | Event 7 | -11/Scrapyard | Discovered new exit (range 14) 61 | -11/Scrapyard | Entered Materials 155 | -10/Materials | Discovered new exit (range 15) 303 | -10/Materials | Build established: Mutant 749 | -10/Materials | Core integrity fell below 50% 771 | -10/Materials | Lost 3 parts (1p1n1w) 898 | -10/Materials | Discovered new exit (range 13) 1041 | -10/Materials | Entered Mines 1061 | -10/Mines | Build established: Scavenger-Mutant 1171 | -10/Mines | Discovered new exit (range 12) 1211 | -10/Mines | Entered Materials 1211 | -9/Materials | Evolved 2 slots: Propulsion x1, Utility x1 1484 | -9/Materials | Core integrity fell below 50% 1511 | -9/Materials | Core integrity fell below 20% 1518 | -9/Materials | Destroyed by Y-45 Defender with Heavy Assault Rifle Last Messages --------------- 01468_ Welding Torch destroyed. 01470_ Acquired Welding Torch. 01473_ Aluminum Leg destroyed. 01475_ Welding Torch destroyed. 01478_ Acquired Lgt. Assault Rifle. 01485_ S-10 Pest destroyed. 01488_ Acquired Flight Unit. 01494_ The unstable cave ceiling collapses. 01495_ Acquired Imp. Ion Engine. 01495_ Lgt. Assault Rifle destroyed. 01496_ Acquired 71 matter. 01501_ Acquired 23 matter. 01506_ Acquired 4 matter. 01507_ Imp. Ion Engine destroyed. 01509_ Jacked Y-45 Defender... >>parse_system Reading system data... 01514_ Acquired 18 matter. 01514_ Flight Unit destroyed. 01518_ The unstable cave ceiling collapses. Map ----- +----------------------------------------------------+ | ???????????????????????# #????????? | | ???????????????????????# #????????? | | ???????????????????????# #????????? | | ???????????????????????# #????????? | | ???????????????????????# #????????? | | ???????????????????????# #????????? | | ???????????????????????# #????????? | | ???????????????????????# #????????? | | ???????????????????????# #????????? | | ???????????????????????# #?######?? | | ???????????????????????# #? #?? | | ???????????????????????# # """ #?? | | ???????????????????????# # "R [#?? | | ???????????????????????+ + """ #?? | | ???????????????????????# # #?? | | ???????????????????????# t # #?? | | ???????????????????????# #?### ##?? | | ???????????????????????# #????????? | | ???????????????????????# #????????? | | ???????????????????????# #????????? | | ???????????##+########## #????????? | | ????????? #????????? | | ????????? #????????? | | ????????? #????????? | | ??????????####### #####Y#####?????? | | ????????????????# ??# @ #?????? | | ????????????????# ?# = #?????? | | ????????????????# ## #?????? | | ????????????????# g% * #?????? | | ????????????????+ g* #?????? | | ????????????????# ## #?????? | | ????????????????### ! #?????? | | ?????????????????# #?????? | | ?????????????????#### #?????? | | ??????????????????# # #####?????? | | ??????????????????#########?????????? | | ????????????????????????????????????? | | ????????????????????????????????????? | | ????????????????????????????????????? | | ????????????????????????????????????? | | ????????????????????????????????????? | | ????????????????????????????????????? | | ????????????????????????????????????? | | ????????????????????????????????????? | | ????????????????????????????????????? | | ????????????????????????????????????? | | ????????????????????????????????????? | | ????????????????????????????????????? | | ????????????????????????????????????? | | ????????????????????????????????????? | +----------------------------------------------------+ Best States ------------- Heat Dissipation 38 Energy Generation 12 Energy Capacity 265 Matter Stores 300 Matter Capacity 300 Sight Range 18 Robot Scan Range 10 Terrain Scan Density 10 Core Shielding 20 Evasion (%) 40 Item Schematics ----------------- None Robot Schematics ------------------ None Fabricated ------------ Nothing Alien Tech Used ----------------- None Achievements -------------- None Challenges ------------ None Game ------ Seed CoilRegenerativeReplicator Manual? 0 Play Time 00:17:00 Cumulative 32.5 hours Start 2021.08.04 @ 22:46:09 End 2021.08.04 @ 23:02:03 Sessions 1 Manual Loads 0 Difficulty Rogue Special Mode None Game No. 21 Rogue 21 Adventurer 0 Explorer 0 Win Type - Total 0 Types 0/0/0/0/0/0/0/0/0 Lore% 31 Gallery% 34 Achievement% 28 Wizard Run 0 Options --------- ASCII 0 Keyboard 1 Movement Vi Keybinds 0 Fullscreen 1 Font 20/SmallcapsGlow Map View 50x50 Tactical HUD 1 Map Filters NONE Filters NONE Steam 1 RUN: 33a7dd60-1289-459b-8f2b-793d7c1b833d